bitfinex-derivatives/quotes_ETHF0:USTF0_20250727
["timestamp","ask_amount","ask_price","bid_price","bid_amount"]
[1753577042607,23.1264,3745.1,3745.0,6.55364]
[1753577042801,0.9378,3745.4,3745.3,1.22351]
[1753577043000,23.1254,3745.4,3745.3,5.47481]
[1753577044105,2.2692,3745.4,3745.3,5.47481]
[1753577044305,23.6622,3745.4,3745.3,3.2078]
[1753577044505,1.23134,3745.1,3745.0,4.82044]
[1753577044714,23.65824,3745.1,3745.0,6.25884]
[1753577045004,23.65824,3745.1,3745.0,6.55364]
[1753577045705,23.1244,3745.1,3745.0,6.55364]
[1753577045904,23.1244,3745.1,3745.0,2.26704]
[1753577048010,23.1184,3745.1,3745.0,2.26704]
[1753577048411,3.9053,3745.7,3745.6,0.6897]
[1753577048611,25.82105,3745.7,3745.6,0.9851]
[1753577048810,25.82105,3745.7,3745.6,0.4916]
[1753577049005,2.26918,3745.5,3745.4,1.28249]
[1753577049312,23.65218,3745.5,3745.4,1.28249]
[1753577050112,23.65218,3745.5,3745.4,0.2954]
[1753577050409,1.2313,3745.4,3745.3,0.5338]
[1753577050608,2.2692,3745.4,3745.3,0.8292]
[1753577050803,2.2692,3745.4,3745.3,1.2825]
[1753577051710,2.2692,3745.4,3745.3,1.9722]
[1753577052109,1.7354,3745.4,3745.3,1.9722]
[1753577052513,1.7354,3745.4,3745.3,2.267]
[1753577053214,23.1134,3745.4,3745.3,2.267]
[1753577054112,1.7354,3745.4,3745.3,2.267]
[1753577054308,23.1134,3745.4,3745.3,2.267]
[1753577055114,1.7354,3745.4,3745.3,2.267]
[1753577055412,23.1134,3745.4,3745.3,2.267]
[1753577056114,1.7354,3745.4,3745.3,2.267]
[1753577056412,23.1134,3745.4,3745.3,2.267]
[1753577057114,1.7354,3745.4,3745.3,2.267]
[1753577057312,23.1134,3745.4,3745.3,2.267]
[1753577057506,23.6472,3745.4,3745.3,2.267]
[1753577058113,1.7354,3745.4,3745.3,2.267]
[1753577058414,23.6472,3745.4,3745.3,1.9722]
[1753577058711,23.1134,3745.4,3745.3,1.9722]
[1753577058912,23.6472,3745.4,3745.3,1.9722]
[1753577062712,23.1134,3745.4,3745.3,1.9722]
[1753577062912,23.1134,3745.4,3745.3,2.267]
[1753577063214,23.1124,3745.4,3745.3,2.267]
[1753577063408,23.6462,3745.4,3745.3,2.267]
[1753577063808,1.7354,3745.4,3745.3,2.267]
[1753577064014,3.5006,3745.7,3745.6,2.26697]
[1753577064208,25.8255,3745.7,3745.6,2.26697]
[1753577064408,26.85396,3745.7,3745.6,1.7332]
[1753577064608,26.85396,3745.7,3745.6,1.97217]
[1753577064912,26.85396,3745.7,3745.6,1.4384]
[1753577065215,26.85396,3745.7,3745.6,0.787]
[1753577065714,26.85396,3745.7,3745.6,0.2954]
[1753577066314,0.6975,3745.5,3745.4,2.267]
[1753577066508,23.1124,3745.5,3745.4,2.267]
[1753577068711,1.7354,3745.5,3745.4,2.267]
[1753577068919,0.5087,3745.7,3745.6,2.31707]
[1753577069120,1.1556,3745.9,3745.8,1.24044]
[1753577069416,1.1556,3745.9,3745.8,2.31704]
[1753577069417,23.1173,3745.9,3745.8,2.31704]
[1753577069611,23.65103,3745.9,3745.8,2.31704]
[1753577069917,23.85333,3745.9,3745.8,2.31704]
[1753577070111,1.9426,3745.9,3745.8,2.31704]
[1753577070312,23.3196,3745.9,3745.8,5.52484]
[1753577070907,23.0221,3745.9,3745.8,5.52484]
[1753577071110,0.7087,3745.9,3745.8,5.52484]
[1753577071418,22.0847,3745.9,3745.8,5.52484]
[1753577072712,22.5316,3745.9,3745.8,5.52484]
[1753577072913,22.0847,3745.9,3745.8,5.52484]
[1753577074107,22.5316,3745.9,3745.8,5.52484]
[1753577074512,22.8291,3745.9,3745.8,5.52484]
[1753577074915,21.576,3745.9,3745.8,5.52484]
[1753577075618,22.5316,3745.9,3745.8,5.52484]
[1753577076019,1.1556,3745.9,3745.8,5.52484]
[1753577076419,1.4531,3745.9,3745.8,5.52484]
[1753577076718,0.2,3745.9,3745.8,5.52484]
[1753577076915,1.7403,3745.9,3745.8,5.52484]
[1753577077115,0.509,3745.9,3745.8,5.52484]
[1753577077913,0.7087,3745.9,3745.8,5.52484]
[1753577078218,1.4531,3745.9,3745.8,5.52484]
[1753577082020,0.5087,3746.2,3746.1,2.317]
[1753577082225,0.5087,3746.4,3746.3,2.31697]
[1753577082420,21.8797,3746.4,3746.3,2.31697]
[1753577082617,23.1136,3746.4,3746.3,2.31697]
[1753577083616,2.27631,3746.0,3745.9,4.2866]
[1753577083821,23.64731,3746.0,3745.9,4.2866]
[1753577084417,26.85511,3746.0,3745.9,3.5238]
[1753577084621,23.64731,3746.0,3745.9,3.5238]
[1753577086325,28.64731,3746.0,3745.9,3.5238]
[1753577086519,23.64731,3746.0,3745.9,3.5238]
[1753577087324,0.402,3745.5,3745.4,0.8456]
[1753577087523,22.3785,3745.5,3745.4,2.0034]
[1753577093128,22.3785,3745.5,3745.4,2.3171]
[1753577093325,0.2975,3745.8,3745.7,0.53375]
[1753577093530,22.3785,3745.8,3745.7,2.31705]
[1753577094130,1.0085,3745.8,3745.7,2.31705]
[1753577094432,22.3785,3745.8,3745.7,2.31705]
[1753577094929,22.91224,3745.8,3745.7,2.00335]
[1753577095329,22.3785,3745.8,3745.7,2.00335]
[1753577096530,22.3785,3745.8,3745.7,2.31705]
[1753577097132,1.0085,3745.8,3745.7,2.31705]
[1753577097332,22.3785,3745.8,3745.7,2.31705]
[1753577098136,1.0085,3745.8,3745.7,2.31705]
[1753577098430,22.3785,3745.8,3745.7,2.31705]
[1753577099034,22.91224,3745.8,3745.7,2.31705]
[1753577099229,22.91124,3745.8,3745.7,2.31705]
[1753577099528,1.2332,3746.1,3746.0,1.7844]
[1753577099733,0.3904,3745.8,3745.7,1.4573]
[1753577099923,21.7594,3745.8,3745.7,1.4573]
[1753577100127,21.7594,3745.8,3745.7,1.99105]
[1753577100128,22.90904,3745.8,3745.7,1.99105]
[1753577100632,22.3753,3745.8,3745.7,1.99105]
[1753577102832,22.3753,3745.8,3745.7,2.28765]
[1753577103330,22.3753,3745.8,3745.4,3.2078]
[1753577103331,3.2078,3746.4,3745.6,1.33443]
[1753577103629,22.3743,3746.3,3746.2,2.28757]
[1753577104335,41.6528,3746.8,3746.7,1.23231]
[1753577104530,63.55441,3746.8,3746.7,1.4573]
[1753577104834,0.92404,3746.5,3746.4,1.0562]
[1753577105134,22.90794,3746.5,3746.4,1.29775]
[1753577105729,1.0063,3746.3,3746.0,0.4665]
[1753577105938,1.54001,3746.0,3745.9,3.5238]
[1753577106138,0.92413,3745.9,3745.8,3.2078]
[1753577106433,1.54003,3745.9,3745.8,3.6743]
[1753577106934,1.54003,3745.9,3745.8,0.4665]
[1753577107833,1.54003,3745.9,3745.8,1.0562]
[1753577108531,0.53375,3745.7,3745.6,0.4665]
[1753577108729,22.90605,3745.7,3745.6,0.7641]
[1753577109529,22.90605,3745.7,3745.6,1.4573]
[1753577109835,22.3723,3745.7,3745.6,2.28767]
[1753577110036,22.90605,3745.7,3745.6,2.28767]
[1753577111337,22.90605,3745.7,3745.6,1.7539]
[1753577111933,22.90605,3745.7,3745.6,2.28767]
[1753577112628,22.3723,3745.7,3745.6,2.28767]
[1753577112834,21.8624,3745.7,3745.6,2.28767]
[1753577113437,22.3713,3745.7,3745.6,2.28767]
[1753577114140,1.0063,3745.7,3745.6,2.28767]
[1753577114335,22.3713,3745.7,3745.6,2.28767]
[1753577115142,1.0063,3745.7,3745.6,2.28767]
[1753577115336,22.3713,3745.7,3745.6,2.28767]
[1753577116142,1.0063,3745.7,3745.6,2.28767]
[1753577116439,22.3713,3745.7,3745.6,2.28767]
[1753577117141,1.0063,3745.7,3745.6,2.28767]
[1753577117345,21.8614,3745.7,3745.6,2.28767]
[1753577118739,0.4974,3745.7,3745.6,2.28767]
[1753577118932,0.3091,3746.0,3745.9,1.78443]
[1753577118933,0.4997,3746.0,3745.9,1.78443]
[1753577119139,22.90401,3746.0,3745.9,2.28763]
[1753577119339,22.90401,3746.0,3745.9,1.7539]
[1753577119540,22.90401,3746.0,3745.9,2.28763]
[1753577120035,22.3703,3746.0,3745.9,2.28763]
[1753577120242,21.8614,3746.0,3745.9,2.28763]
[1753577120837,22.1705,3746.0,3745.9,2.28763]
[1753577121044,22.3703,3746.0,3745.9,2.28763]
[1753577121746,22.90401,3746.0,3745.9,2.28763]
[1753577121938,22.90401,3746.0,3745.9,1.7539]
[1753577122134,22.90401,3746.0,3745.9,1.99103]
[1753577123141,1.54001,3746.0,3745.9,1.4573]
[1753577123343,0.53377,3745.6,3745.5,0.5897]
[1753577123543,0.53377,3745.6,3745.5,0.2976]
[1753577123544,22.90207,3745.6,3745.5,0.2976]
[1753577123840,22.3683,3745.6,3745.5,2.28768]
[1753577125146,1.0063,3745.9,3745.8,1.23244]
[1753577125445,22.3683,3745.9,3745.8,2.28764]
[1753577125645,22.90203,3745.9,3745.8,2.28764]
[1753577125845,22.3683,3745.9,3745.8,2.28764]
[1753577126045,22.90203,3745.9,3745.8,2.28764]
[1753577126547,22.90203,3745.9,3745.8,1.99104]
[1753577128145,1.54003,3745.9,3745.8,1.99104]
[1753577128348,22.90103,3745.9,3745.8,1.99104]
[1753577129142,22.90103,3745.9,3745.8,1.2507]
[1753577129345,22.90103,3745.9,3745.8,0.9586]
[1753577129546,0.92035,3745.7,3745.6,1.27676]
[1753577129737,22.86105,3745.7,3745.6,0.2907]
[1753577130744,22.86105,3745.7,3745.6,1.57957]
[1753577131248,22.86105,3745.7,3745.6,1.2537]
[1753577131844,22.86105,3745.7,3745.6,1.99207]
[1753577132146,1.50005,3745.7,3745.6,2.29337]
[1753577132346,22.86005,3745.7,3745.6,2.29337]
[1753577132945,22.86005,3745.7,3745.6,1.7596]
[1753577133149,22.86005,3745.7,3745.6,1.4583]
[1753577133550,22.3263,3745.7,3745.6,2.29337]
[1753577136049,22.86005,3745.7,3745.6,1.7596]
[1753577136351,22.86005,3745.7,3745.6,1.4583]
[1753577137252,1.50008,3745.5,3745.4,1.5796]
[1753577137445,22.85908,3745.5,3745.4,1.5796]
[1753577137646,22.85908,3745.5,3745.4,1.0458]
[1753577137949,22.85908,3745.5,3745.4,1.9921]
[1753577138154,22.3253,3745.5,3745.4,1.9921]
[1753577138353,22.85908,3745.5,3745.4,1.9921]
[1753577139054,22.3253,3745.5,3745.4,1.9921]
[1753577140557,22.3253,3745.5,3745.4,2.2934]
[1753577140954,22.85908,3745.5,3745.4,2.2934]
[1753577142753,22.85908,3745.5,3745.4,1.7596]
[1753577143252,22.85908,3745.5,3745.1,1.0458]
[1753577143253,25.1465,3745.5,3745.1,1.0458]
[1753577143459,1.50013,3745.2,3745.1,0.743]
[1753577143656,0.92045,3745.0,3744.9,4.2536]
[1753577143853,22.85715,3745.0,3744.9,4.4615]
[1753577144053,22.85715,3745.0,3744.9,5.19997]
[1753577144361,22.3233,3745.0,3744.9,5.50127]
[1753577145061,22.85715,3745.0,3744.9,5.50127]
[1753577146459,22.85715,3745.0,3744.9,4.2536]
[1753577147261,22.3233,3745.0,3744.9,5.50127]
[1753577147461,22.85715,3745.0,3744.9,5.50127]
[1753577147855,22.85715,3745.0,3744.9,4.9674]
[1753577148559,22.85715,3745.0,3744.9,0.743]
[1753577148761,22.85715,3745.0,3744.9,0.2907]
[1753577149458,0.92048,3744.8,3744.7,1.0458]
[1753577149660,0.92051,3744.6,3744.5,0.743]
[1753577149861,22.85621,3744.6,3744.5,0.743]
[1753577150262,22.85621,3744.6,3744.5,1.0458]
[1753577152771,22.85621,3744.6,3744.5,1.2537]
[1753577152963,22.85621,3744.6,3744.5,1.4583]
[1753577156571,22.85621,3744.6,3744.5,0.9509]
[1753577156771,22.85621,3744.6,3744.5,0.2907]
[1753577157168,22.85621,3744.6,3744.5,1.0458]
[1753577158371,22.85621,3744.6,3744.5,1.2537]
[1753577160569,22.85621,3744.6,3744.5,1.7451]
[1753577161474,22.85621,3744.6,3744.5,1.4498]
[1753577163179,22.85621,3744.6,3744.5,1.7451]
[1753577170277,3.5176,3744.8,3744.7,1.233]
[1753577170475,25.40549,3744.8,3744.7,1.7535]
[1753577170683,25.40549,3744.8,3744.7,2.2874]
[1753577170879,25.59779,3744.8,3744.7,2.2874]
[1753577171276,25.90819,3744.8,3744.7,1.7535]
[1753577171476,0.92993,3744.5,3744.4,1.7535]
[1753577171680,22.90413,3744.5,3744.4,1.4582]
[1753577172781,22.90413,3744.5,3744.4,0.298]
[1753577172981,22.90413,3744.5,3744.2,0.7591]
[1753577172982,1.55018,3744.1,3744.0,4.2829]
[1753577173184,26.11098,3744.1,3744.0,4.2829]
[1753577173483,21.353,3744.1,3744.0,5.81128]
[1753577173677,0.5021,3744.4,3744.3,1.7535]
[1753577173877,3.7105,3745.0,3744.9,0.6991]
[1753577174183,3.7105,3745.0,3744.9,2.28737]
[1753577174184,22.59325,3745.0,3744.9,2.28737]
[1753577174384,0.8442,3745.4,3745.1,2.28734]
[1753577174681,21.353,3745.2,3745.1,2.28734]
[1753577175383,0.3098,3745.6,3745.4,1.2329]
[1753577175581,21.353,3745.5,3745.4,1.2329]
[1753577176077,21.8551,3745.5,3745.4,2.2873]
[1753577177377,22.0578,3745.5,3745.4,1.7535]
[1753577177573,22.3682,3745.5,3745.4,1.7535]
[1753577178579,22.90198,3745.5,3745.4,1.7535]
[1753577178780,22.3682,3745.5,3745.4,1.7535]
[1753577179084,22.3682,3745.5,3745.4,2.2873]
[1753577179276,22.0558,3745.5,3745.4,2.2873]
[1753577180381,0.3104,3745.8,3745.7,0.53375]
[1753577180585,0.3104,3745.8,3745.7,2.28725]
[1753577180586,21.8521,3745.8,3745.7,2.28725]
[1753577181181,0.5021,3745.8,3745.7,2.28725]
[1753577181387,21.8511,3745.8,3745.7,2.28725]
[1753577181984,22.3652,3745.8,3745.7,2.28725]
[1753577182284,22.3642,3745.8,3745.7,2.28725]
[1753577183186,1.0162,3745.8,3745.7,2.28725]
[1753577183489,22.3642,3745.8,3745.7,2.28725]
[1753577184286,22.3622,3745.8,3745.7,2.28725]
[1753577185190,1.0162,3745.8,3745.7,2.28725]
[1753577185388,22.3622,3745.8,3745.7,2.28725]
[1753577186292,22.3612,3745.8,3745.7,2.28725]
[1753577187086,1.0162,3745.8,3745.7,2.28725]
[1753577187396,22.3602,3745.8,3745.7,2.28725]
[1753577188184,1.0162,3745.8,3745.7,2.28725]
[1753577188382,22.3602,3745.8,3745.7,2.28725]
[1753577189090,1.0162,3745.8,3745.7,2.28725]
[1753577189295,22.3592,3745.8,3745.7,2.28725]
[1753577190198,22.3582,3745.8,3745.7,2.28725]
[1753577191100,1.0162,3745.8,3745.7,2.28725]
[1753577191299,22.3572,3745.8,3745.7,2.28725]
[1753577191500,22.3572,3745.8,3745.7,1.99195]
[1753577191700,22.3572,3745.8,3745.7,0.53375]
[1753577191899,0.9719,3745.5,3745.3,3.2078]
[1753577192097,0.6757,3744.8,3744.7,2.1012]
[1753577192400,0.6757,3744.8,3744.7,2.2929]
[1753577192596,22.3119,3744.8,3744.7,2.2929]
[1753577193495,22.0157,3744.8,3744.7,2.2929]
[1753577193694,21.34,3744.8,3744.7,2.2929]
[1753577194798,22.3119,3744.8,3744.7,2.2929]
[1753577195701,22.3119,3744.8,3744.7,1.759]
[1753577196102,22.3119,3744.8,3744.7,2.2929]
[1753577201911,21.34,3744.8,3744.7,2.2929]
[1753577202125,0.1938,3745.4,3745.3,1.7995]
[1753577202311,21.5338,3745.4,3745.3,5.5006]
[1753577202512,21.34,3745.4,3745.3,5.5006]
[1753577205625,21.5338,3745.4,3745.3,5.5006]
[1753577206624,21.8244,3745.4,3745.3,5.5006]
[1753577206825,22.0157,3745.4,3745.3,5.5006]
[1753577207426,21.34,3745.4,3745.3,5.5006]
[1753577208122,0.2906,3746.0,3745.6,1.23097]
[1753577208326,0.6757,3746.3,3746.2,1.23088]
[1753577208520,22.3089,3746.3,3746.2,2.29268]
[1753577209726,22.84257,3746.3,3746.2,1.759]
[1753577210222,22.0127,3746.3,3746.2,2.29268]
[1753577210529,21.337,3746.3,3746.2,2.29268]
[1753577211429,21.337,3746.3,3746.2,5.50048]
[1753577212125,22.0127,3746.3,3746.2,5.50048]
[1753577212321,22.3089,3746.3,3746.2,5.20278]
[1753577212528,22.3089,3746.3,3746.2,3.2078]
[1753577212724,22.3089,3746.3,3745.6,1.33442]
[1753577212725,0.9719,3746.2,3745.8,3.2078]
[1753577212926,0.3851,3746.2,3745.8,3.2078]
[1753577213232,0.3851,3745.9,3745.8,3.74154]
[1753577213425,0.9719,3745.9,3745.8,5.01114]
[1753577213825,0.9719,3745.9,3745.8,5.50054]
[1753577215230,0.91883,3745.9,3745.5,0.5993]
[1753577215425,0.9719,3745.6,3745.5,1.52868]
[1753577215629,22.3039,3745.6,3745.5,1.52868]
[1753577216029,22.3039,3745.6,3745.5,2.29278]
[1753577217425,0.3984,3745.3,3745.2,1.7474]
[1753577217624,0.7873,3745.2,3745.1,0.53383]
[1753577217828,0.9933,3745.2,3745.1,0.53383]
[1753577218329,0.9933,3745.2,3745.1,0.84563]
[1753577219339,0.9933,3745.2,3745.1,1.80543]
[1753577219632,0.9933,3745.2,3745.1,2.09203]
[1753577220328,0.9933,3745.2,3745.1,2.28123]
[1753577225632,0.9933,3745.2,3745.1,1.7474]
[1753577226739,1.52713,3745.2,3745.1,1.7474]
[1753577226935,21.331,3745.3,3744.8,0.3118]
[1753577226936,1.52714,3745.1,3744.8,0.3118]
[1753577227239,0.9933,3744.9,3744.8,1.7474]
[1753577228037,0.9933,3744.9,3744.8,2.28128]
[1753577228239,0.3984,3744.9,3744.8,2.28128]
[1753577228537,21.331,3745.0,3744.9,2.28127]
[1753577231333,1.52707,3745.6,3745.5,1.7474]
[1753577231538,22.85807,3745.6,3745.5,1.7474]
[1753577232742,1.5271,3745.4,3745.3,1.2716]
[1753577233338,1.5271,3745.4,3745.3,1.80541]
[1753577233534,1.5271,3745.4,3745.3,2.28121]
[1753577236140,1.5271,3745.4,3745.3,1.7474]
[1753577236342,1.5271,3745.4,3745.3,2.28121]
[1753577237646,0.9933,3745.4,3745.3,2.28121]
[1753577237947,0.3984,3745.4,3745.3,2.28121]
[1753577238144,0.1924,3745.4,3745.3,2.28121]
[1753577238447,0.1924,3745.4,3745.0,6.7316]
[1753577238448,22.56078,3745.6,3745.5,2.28118]
[1753577238648,22.027,3745.6,3745.5,2.28118]
[1753577239448,22.56077,3745.6,3745.5,2.28118]
[1753577240342,22.56077,3745.6,3745.5,1.7474]
[1753577240647,22.85807,3745.6,3745.5,1.7474]
[1753577241745,22.85807,3745.6,3745.5,2.28118]
[1753577242043,22.85807,3745.6,3745.5,1.7474]
[1753577243849,0.9322,3745.4,3745.3,3.2078]
[1753577244246,1.5271,3745.4,3745.3,3.2078]
[1753577244453,1.5271,3745.4,3745.3,5.01321]
[1753577244652,1.5271,3745.4,3745.3,5.48901]
[1753577244849,1.5271,3745.4,3745.3,4.9552]
[1753577245351,1.5271,3745.4,3745.3,5.48901]
[1753577246453,1.5271,3745.4,3745.3,4.9552]
[1753577246848,1.5271,3745.4,3745.3,5.20241]
[1753577247249,1.5271,3745.4,3745.3,4.6686]
[1753577247449,1.5271,3745.4,3745.3,4.9659]
[1753577248054,1.5271,3745.4,3745.3,5.49971]
[1753577248244,1.5271,3745.4,3745.3,4.9659]
[1753577248855,1.5271,3745.4,3745.3,5.49971]
[1753577250453,0.9933,3745.4,3745.3,5.49971]
[1753577250654,21.6325,3745.6,3745.5,1.22348]
[1753577250855,21.6325,3745.6,3745.5,2.26958]
[1753577252054,21.8227,3745.6,3745.5,2.26958]
[1753577252454,22.015,3745.6,3745.5,2.26958]
[1753577252654,22.54877,3745.6,3745.5,2.26958]
[1753577252854,22.85417,3745.6,3745.5,1.7358]
[1753577253054,22.85417,3745.6,3745.5,2.26958]
[1753577254061,22.85417,3745.6,3745.5,1.7358]
[1753577255359,22.3204,3745.6,3745.5,2.26958]
[1753577256061,22.85417,3745.6,3745.5,2.26958]
[1753577256261,22.85417,3745.6,3745.5,1.7358]
[1753577257359,0.9163,3745.4,3745.3,3.9566]
[1753577257658,1.5232,3745.4,3745.3,4.9436]
[1753577258062,1.5232,3745.4,3745.3,5.47741]
[1753577258260,1.5232,3745.4,3745.3,3.2078]
[1753577258455,0.91634,3745.1,3745.0,0.7488]
[1753577258759,22.84624,3745.1,3745.0,0.2938]
[1753577258952,22.84624,3745.1,3744.8,0.7523]
[1753577259156,0.3015,3744.6,3744.4,0.7488]
[1753577259449,0.91648,3744.1,3744.0,0.7418]
[1753577259660,0.91648,3744.1,3744.0,1.241]
[1753577259661,22.84638,3744.1,3744.0,1.241]
[1753577259858,22.84638,3744.1,3744.0,0.2868]
[1753577260164,1.52341,3743.9,3743.8,3.40545749]
[1753577260462,4.73121,3743.9,3743.8,0.19765749]
[1753577261054,1.52341,3743.9,3743.8,0.19765749]
[1753577261259,0.9894,3743.9,3743.8,1.93345749]
[1753577261960,22.3114,3743.9,3743.8,2.46748749]
[1753577262756,21.7045,3743.9,3743.8,2.46748749]
[1753577262952,0.684,3744.2,3744.1,0.93688]
[1753577263157,0.684,3744.2,3744.1,2.26978]
[1753577263455,22.009,3744.2,3744.1,2.26978]
[1753577264062,22.3144,3744.2,3744.1,2.26978]
[1753577264964,22.3144,3744.2,3744.1,1.7358]
[1753577265163,22.3144,3744.2,3744.1,1.4385]
[1753577265358,22.84837,3744.2,3744.1,0.786]
[1753577265553,22.84837,3744.2,3744.0,0.53399]
[1753577265758,0.1902,3744.0,3743.9,1.5383]
[1753577265958,0.3825,3744.0,3743.9,1.5383]
[1753577266263,0.9894,3744.0,3743.9,1.7358]
[1753577267067,0.9894,3744.0,3743.9,2.26981]
[1753577268160,21.325,3744.2,3744.1,1.77058]
[1753577268161,21.5173,3744.2,3744.1,1.77058]
[1753577268463,21.5193,3744.2,3744.1,2.26978]
[1753577268664,22.011,3744.2,3744.1,2.26978]
[1753577269366,21.7095,3744.2,3744.1,2.26978]
[1753577270066,22.011,3744.2,3744.1,2.26978]
[1753577271158,0.684,3744.2,3744.1,2.26978]
[1753577271357,22.011,3744.2,3744.1,2.26978]
[1753577272167,0.684,3744.2,3744.1,2.26978]
[1753577272362,22.011,3744.2,3744.1,2.26978]
[1753577273265,0.9894,3744.5,3744.4,0.53394]
[1753577273569,22.011,3744.5,3744.4,2.26974]
[1753577275768,22.85033,3744.5,3744.4,1.7358]
[1753577276068,22.85033,3744.5,3744.4,2.26974]
[1753577277169,1.52333,3744.5,3744.4,2.26974]
[1753577277368,22.84933,3744.5,3744.4,2.26974]
[1753577278168,1.52333,3744.5,3744.4,2.26974]
[1753577278371,22.84933,3744.5,3744.4,2.26974]
[1753577278559,22.84933,3744.5,3744.4,1.7358]
[1753577279870,22.84933,3744.5,3744.1,3.74178]
[1753577279871,1.50397,3744.2,3744.1,1.2841]
[1753577280067,22.82997,3744.2,3744.1,0.9885]
[1753577280465,0.73501,3743.9,3743.8,3.72145749]
[1753577280665,22.82901,3743.9,3743.8,4.76135749]
[1753577280866,22.82901,3743.9,3743.8,5.25885749]
[1753577281372,22.82901,3743.9,3743.8,3.72145749]
[1753577282574,22.82901,3743.9,3743.8,0.19765749]
[1753577285069,0.97,3743.9,3743.8,1.93775749]
[1753577285273,0.1921,3744.1,3744.0,0.2019]
[1753577285476,21.5171,3744.1,3744.0,1.7401]
[1753577285769,21.5171,3744.1,3744.0,2.2741]
[1753577285977,21.325,3744.1,3744.0,2.2741]
[1753577287375,21.5171,3744.1,3744.0,2.2741]
[1753577287670,22.295,3744.1,3744.0,2.2741]
[1753577288177,22.82898,3744.1,3744.0,2.2741]
[1753577288475,22.295,3744.1,3744.0,2.2741]
[1753577288670,21.7181,3744.1,3744.0,2.2741]
[1753577288877,21.325,3744.1,3744.0,2.2741]
[1753577289270,22.295,3744.1,3744.0,2.2741]
[1753577290273,21.325,3744.1,3744.0,2.2741]
[1753577290474,21.325,3744.1,3744.0,5.4819]
[1753577291678,21.325,3744.1,3744.0,2.2741]
[1753577292273,22.0065,3744.1,3744.0,2.2741]
[1753577292469,21.7181,3744.1,3744.0,2.2741]
[1753577292670,21.7181,3744.1,3744.0,5.4819]
[1753577296082,21.325,3744.1,3744.0,5.4819]
[1753577296782,21.5171,3744.1,3744.0,5.4819]
[1753577297080,21.8055,3744.1,3744.0,5.4819]
[1753577297579,22.0065,3744.1,3744.0,5.4819]
[1753577298484,21.7181,3744.1,3744.0,5.4819]
[1753577299384,22.0065,3744.1,3744.0,5.4819]
[1753577300084,0.6815,3744.4,3744.3,2.27405]
[1753577300287,22.0055,3744.4,3744.3,2.27405]
[1753577301789,0.6815,3744.4,3744.3,2.27405]
[1753577301980,0.97,3744.7,3744.6,2.27401]
[1753577302288,22.293,3744.7,3744.6,2.27401]
[1753577302884,22.293,3744.7,3744.6,1.7401]
[1753577303089,22.8269,3744.7,3744.6,1.7401]
[1753577303687,22.293,3744.7,3744.6,2.27401]
[1753577303887,22.8269,3744.7,3744.6,2.27401]
[1753577304088,22.8269,3744.7,3744.6,1.31971]
[1753577304692,22.8269,3744.7,3744.6,2.07131]
[1753577305092,22.293,3744.7,3744.6,2.27401]
[1753577306393,21.7161,3744.7,3744.6,2.27401]
[1753577308088,0.3931,3744.7,3744.6,2.27401]
[1753577308394,21.7141,3744.7,3744.6,2.27401]
[1753577309189,0.3931,3744.7,3744.6,2.27401]
[1753577309391,21.7141,3744.7,3744.6,2.27401]
[1753577309891,22.0241,3744.7,3744.6,2.27401]
[1753577311196,21.321,3744.7,3744.6,2.27401]
[1753577315295,21.529,3744.7,3744.6,2.27401]
[1753577315594,21.839,3744.7,3744.6,2.27401]
[1753577315793,21.321,3744.7,3744.6,2.27401]
[1753577315995,21.529,3744.7,3744.6,2.27401]
[1753577316192,0.4101,3743.7,3743.6,2.5831984]
[1753577316396,0.53418,3742.7,3742.6,4.61298003]
[1753577316697,24.8828,3742.7,3742.1,6.17929648]
[1753577316893,3.74205,3742.2,3742.1,6.17929648]
[1753577317199,25.43105,3742.2,3742.1,6.17929648]
[1753577317391,0.5343,3741.9,3741.8,0.49116314]
[1753577317594,21.687,3741.9,3741.8,0.49116314]
[1753577318396,21.687,3741.9,3741.8,0.77886314]
[1753577318800,21.687,3741.9,3741.8,1.31317314]
[1753577319900,21.687,3741.9,3741.8,1.51997314]
[1753577320297,21.687,3741.9,3741.8,2.00747314]
[1753577320796,21.687,3741.9,3741.8,2.46117314]
[1753577321394,3.2078,3742.2,3742.1,0.53427]
[1753577321595,24.8838,3742.2,3742.1,2.26337]
[1753577321798,24.8838,3742.2,3742.1,0.82767]
[1753577322400,24.8838,3742.2,3742.1,1.11537]
[1753577322807,24.8838,3742.2,3742.1,1.32217]
[1753577323108,24.8798,3742.2,3742.1,1.32217]
[1753577324708,24.8798,3742.2,3742.1,1.80967]
[1753577324904,24.8798,3742.2,3742.1,2.26337]
[1753577325708,21.657,3742.2,3742.1,2.26337]
[1753577326006,3.2078,3742.6,3742.5,1.32211]
[1753577326504,24.8598,3742.6,3742.5,1.32211]
[1753577326804,24.8588,3742.6,3742.5,1.32211]
[1753577327809,24.8568,3742.6,3742.5,2.26331]
[1753577328710,3.2078,3742.6,3742.5,2.26331]
[1753577328912,24.8528,3742.6,3742.5,2.26331]
[1753577329601,3.2078,3742.6,3742.5,2.26331]
[1753577330111,24.8508,3742.6,3742.5,2.26331]
[1753577330609,21.643,3742.6,3742.5,2.26331]
[1753577333115,3.2078,3742.8,3742.7,0.53418]
[1753577333308,24.8398,3742.8,3742.7,1.22848]
[1753577333508,24.8398,3742.8,3742.7,2.26328]